Cogmind - Beta 15 @@@ ROGUE MODE // 2025.06.24 @ 23:20:59 Player: Maulwurf Result: Destroyed by DE-RT8(R) with Subdweller Machine Gun Performance ------------- Evolutions (0) 0 Regions Visited (3) 600 Robots Destroyed (14) 70 Value Destroyed (335) 335 Prototype IDs (1) 20 Alien Tech Used (0) 0 Bonus (85) 85 TOTAL SCORE: 1110 Bonus ------- Follower Combat Kills 85 Cogmind --------- Core Integrity 0/250 Matter 300/300 Energy 83/100 System Corruption 0% Temperature Cool (0) Movement Core (100) Ox1 Location -10/Subcaves Parts ------- > --- POWER (1) -------- (None) > --- PROPULSION (2) --- (None) > --- UTILITY (2) ------ Gun Armor > --- WEAPON (2) ------- Medium Laser > --- INVENTORY (5) ---- Improved Terrain Scanner Seismic Detector ECM Suite Subdweller Beam Cannon Mining Laser Peak State ------------ > --- POWER ------------ Light Ion Engine > --- PROPULSION ------- Aluminum Leg Aluminum Leg > --- UTILITY ---------- Subdweller Optics Gun Armor > --- WEAPON ----------- Medium Laser Medium Laser Subdweller Laser Subdweller Machine Gun > --- INVENTORY -------- Improved Terrain Scanner Seismic Detector [Rating: 20] Favorites ----------- Power Light Ion Engine Engine Light Ion Engine Propulsion Aluminum Leg Leg Aluminum Leg Wheel Subdweller Monowheel Utility Heat Sink Device Heat Sink Protection Gun Armor Weapon Medium Laser Energy Gun Medium Laser Ballistic Gun Assault Rifle Build | -11 -10 -10 -10 ------- Run | Yrd Mat Min Sub Slots Evolved . | . . . . Power . | . . . . Propulsion . | . . . . Utility . | . . . . Weapon . | . . . . Parts Attached 18 | 6 1 2 9 Power 2 | 1 . . 1 Engine 2 | 1 . . 1 Core . | . . . . Reactor . | . . . . Propulsion 3 | 2 . . 1 Treads . | . . . . Leg 2 | 2 . . . Wheel 1 | . . . 1 Hover . | . . . . Flight . | . . . . Utility 8 | 1 1 2 4 Device 6 | 1 1 2 2 Storage . | . . . . Processor . | . . . . Hackware . | . . . . Protection 2 | . . . 2 Artifact . | . . . . Weapon 5 | 2 . . 3 Energy Gun 3 | 1 . . 2 Energy Cannon . | . . . . Ballistic Gun 2 | 1 . . 1 Ballistic Cannon . | . . . . Launcher . | . . . . Special Weapon . | . . . . Impact Weapon . | . . . . Slashing Weapon . | . . . . Piercing Weapon . | . . . . Special Melee Weapon . | . . . . Unidentified Prototypes 1 | . . . 1 Parts Lost 7 | . . . 7 Power 1 | . . . 1 Propulsion 2 | . . . 2 Utility 1 | . . . 1 Weapon 3 | . . . 3 Highest Loss Streak 6 | . . . 6 To Critical Strikes 1 | . . . 1 Average Backups 4 | 2 4 5 3 Power . | . . . . Propulsion . | 1 1 1 . Utility 1 | . . 1 2 Weapon 2 | . 2 3 1 Tool/Special . | . . . . Unused Backups 8 | . 3 1 4 Power . | . . . . Propulsion 3 | . 2 . 1 Utility 1 | . . 1 . Weapon 4 | . 1 . 3 Tool/Special . | . . . . Average Slot Usage (%) 95 | . 97 100 90 Engine 13 | . 14 14 11 Leg 26 | . 28 28 22 Device 22 | . 25 28 15 Protection 3 | . . . 7 Energy Gun 17 | . 14 14 22 Ballistic Gun 11 | . 14 14 8 Peak Build Rating 20 | 6 7 9 20 Average Rating 9 | 4 6 8 15 On Entrance 5 | . 6 7 9 Naked Turns . | . . . . Heaviest Build 21 | 8 10 10 21 Greatest Support 20 | 20 20 20 20 Greatest Overweight (x) 1 | . . . 1 Average Overweight (x) . | . . . . Largest Inventory Capacity 5 | 5 5 5 5 Average Capacity 5 | 5 5 5 5 Most Carried 5 | 4 5 5 5 Average Carried 4 | 2 4 4 3 Final Capacity 5 | 5 5 5 5 Final Carried 5 | 4 5 5 5 Class Distribution -------------------- 81% | Mutant 18% | Skirmisher Dominant Class ---------------- Mutant | -10/Materials Mutant | -10/Mines Skirmisher | -10/Subcaves Resources | -11 -10 -10 -10 ----------- Run | Yrd Mat Min Sub Matter Collected 507 | 281 58 38 130 Remotely . | . . . . Salvage Created 409 | 87 155 57 110 Parts 27 | 5 8 6 8 Haulers Intercepted . | . . . . Recyclers Shooed . | . . . . Parts Field Recycled . | . . . . Retrieved Matter . | . . . . Parts Self-Destructed 7 | . . . 7 Prevented . | . . . . Kills | -11 -10 -10 -10 ------- Run | Yrd Mat Min Sub Combat Hostiles Destroyed 11 | 1 4 3 3 Guns 11 | 1 4 3 3 Classes Destroyed 5 | 3 . 1 1 Worker 1 | 1 . . . Tunneler 2 | 1 . 1 . Swarmer 3 | . . 3 . Grunt 5 | 1 4 . . Subdweller 3 | . . . 3 Best Kill Streak 3 | 2 2 3 2 Combat Bots Only 3 | 1 2 3 2 Max Kills in Single Turn 1 | 1 1 1 1 Gunslinging . | . . . . Exploded . | . . . . Melee . | . . . . Uniques/NPCs Destroyed . | . . . . Combat | -11 -10 -10 -10 -------- Run | Yrd Mat Min Sub Hostile Shots Fired 83 | 9 15 6 53 Missed 22 | 2 5 1 14 Hits 61 | 7 10 5 39 Projectile 61 | 7 10 5 39 Critical Strikes 2 | . . . 2 Damage Taken 1057 | 73 109 40 835 Core 256 | 31 32 . 193 Absorbed by Shields . | . . . . Core Remaining (%) 87 | 87 . . . Volleys Fired 46 | 7 17 5 17 Largest 3 | 2 2 2 3 Hottest 130 | 70 70 70 130 Shots Fired 89 | 14 34 10 31 Gun 89 | 14 34 10 31 Cannon . | . . . . Launcher . | . . . . Special . | . . . . Kinetic 37 | 7 17 5 8 Thermal 52 | 7 17 5 23 Explosive . | . . . . Electromagnetic . | . . . . Robot Hit Streak 24 | 7 9 12 24 Robot Miss Streak 5 | 2 5 1 1 Penetration Max . | . . . . Secondary Targets 1 | . . . 1 Max Gunslinging Chain 1 | . . . 1 Shots Hit Robots 68 | 10 22 7 29 Core Hits 25 | 4 9 4 8 Critical Kills . | . . . . Critical Parts Destroyed . | . . . . Critical Strikes 6 | 1 1 . 4 Burn 6 | 1 1 . 4 Melee Attacks . | . . . . Impact . | . . . . Slashing . | . . . . Piercing . | . . . . Sneak Attacks . | . . . . Combat Hostiles . | . . . . Follow-up Attacks . | . . . . Damage Inflicted 904 | 121 269 84 430 Guns 904 | 121 269 84 430 Cannons . | . . . . Explosions . | . . . . Melee . | . . . . Ramming . | . . . . Kinetic 378 | 45 144 34 155 Thermal 526 | 76 125 50 275 Explosive . | . . . . Electromagnetic . | . . . . Impact . | . . . . Slashing . | . . . . Piercing . | . . . . Highest Corruption . | . . . . Average Corruption . | . . . . Corruption Purged . | . . . . Corruption Blocked . | . . . . Overload Shots . | . . . . Overflow Damage . | . . . . Projectiles . | . . . . Explosions . | . . . . Melee . | . . . . Knockbacks . | . . . . Impact . | . . . . Kinetic . | . . . . Secondary . | . . . . Self-Inflicted Damage . | . . . . Shots . | . . . . Rammed . | . . . . Targets Rammed . | . . . . Kicked . | . . . . Crushed . | . . . . Highest Temperature 142 | 69 . 36 142 Average Temperature 51 | 35 . 19 77 Received Heat Transfer 303 | 42 60 . 201 Siege Activations . | . . . . Martial Activations . | . . . . Shielding Activations . | . . . . Robots Disrupted . | . . . . Combat Hostiles . | . . . . Robots Corrupted . | . . . . Combat Hostiles . | . . . . Parts Fried . | . . . . Impact Corruptions . | . . . . Robots Melted . | . . . . Combat Hostiles . | . . . . Parts Melted 2 | 1 . . 1 Heat Transferred 1998 | 296 444 148 1110 Parts Sabotaged . | . . . . Parts Stolen . | . . . . Parts Stripped . | . . . . Power Chain Reactions . | . . . . Alert | -11 -10 -10 -10 ------- Run | Yrd Mat Min Sub Maximum Alert Level . | . . . . Low Security (%) 100 | 100 100 100 . Level 1 . | . . . . Level 2 . | . . . . Level 3 . | . . . . Level 4 . | . . . . Level 5 . | . . . . High Security . | . . . . Max Security . | . . . . Peak Influence 70 | 15 51 70 . Initial 7 | . 3 7 . Average 14 | 2 18 18 . Influence Increases 221 | 30 95 75 21 Destroy 0b10 Robot/C 180 | 20 80 60 20 Destroy 0b10 Robot/NC 15 | 10 . 5 . Destroy Leader 20 | . 10 10 . Allied During Kill 1 | . . . 1 Successful Hack 4 | . 4 . . Destroy Structure 1 | . 1 . . Influence Decreases 221 | 25 79 96 21 Entered New Map 16 | . 2 14 . Time Decay 205 | 25 77 82 21 Squads Dispatched 1 | . 1 . . Investigation 1 | . 1 . . Extermination . | . . . . Reinforcement . | . . . . Assault . | . . . . Garrison . | . . . . Intercept . | . . . . Searches Triggered . | . . . . Construction Impeded . | . . . . Haulers Reinforced . | . . . . Active Scanning Responses . | . . . . Cargo Convoy Interrupts . | . . . . Stealth | -11 -10 -10 -10 --------- Run | Yrd Mat Min Sub Distress Signals 1 | . 1 . . Communications Jammed . | . . . . Distress Signals . | . . . . Times Spotted 26 | 1 7 3 15 Peak Tracking Total 9 | 1 3 3 9 Tactical Retreats 1 | . 1 . . Traps | -11 -10 -10 -10 ------- Run | Yrd Mat Min Sub Traps Triggered . | . . . . Indirectly . | . . . . Trap Hack Attempts . | . . . . Triggered . | . . . . Disarmed . | . . . . Reprogrammed . | . . . . Reused . | . . . . Traps Extracted . | . . . . Installed . | . . . . Triggered . | . . . . Machines | -11 -10 -10 -10 ---------- Run | Yrd Mat Min Sub Machines Disabled . | . . . . Max in Single Turn . | . . . . Machines Repaired . | . . . . Machines Dismantled . | . . . . Machines Sabotaged . | . . . . Overloaded Fab Kills . | . . . . Hacking | -11 -10 -10 -10 --------- Run | Yrd Mat Min Sub Machines Accessed 2 | . 2 . . Terminals 2 | . 2 . . Fabricators . | . . . . Repair Stations . | . . . . Recycling Units . | . . . . Scanalyzers . | . . . . Garrison Access . | . . . . Total Hacks 5 | . 5 . . Successful 2 | . 2 . . Failed 2 | . 2 . . Catastrophic . | . . . . Database Lockouts 1 | . 1 . . Manual 2 | . 2 . . Terminals 5 | . 5 . . Fabricators . | . . . . Repair Stations . | . . . . Recycling Units . | . . . . Scanalyzers . | . . . . Garrison Access . | . . . . Terminal Hacks 2 | . 2 . . Record 2 | . 2 . . Fabricator Hacks . | . . . . Repair Station Hacks . | . . . . Recycling Unit Hacks . | . . . . Scanalyzer . | . . . . Garrison Access Hacks . | . . . . Unauthorized Hacks . | . . . . Terminals . | . . . . Fabricators . | . . . . Repair Stations . | . . . . Recycling Units . | . . . . Scanalyzers . | . . . . Garrison Access . | . . . . Data Cores Recovered . | . . . . Used . | . . . . Hacking Detections 2 | . 2 . . Full Trace Events 1 | . 1 . . Feedback Events . | . . . . Feedback Blocked . | . . . . Robot Schematics Acquired . | . . . . Robots Built . | . . . . Authchips . | . . . . Time . | . . . . Total Robot Build Rating . | . . . . Part Schematics Acquired . | . . . . Parts Built . | . . . . Authchips . | . . . . Time . | . . . . Total Part Build Rating . | . . . . Parts Repaired . | . . . . Time . | . . . . Parts Recycled . | . . . . Recycled Matter . | . . . . Retrieved Matter . | . . . . Retrieved Components . | . . . . Parts Scanalyzed . | . . . . Part Schematics Acquired . | . . . . Parts Damaged . | . . . . Bothacking | -11 -10 -10 -10 ------------ Run | Yrd Mat Min Sub Used RIF Installer . | . . . . Robots Hacked . | . . . . Non-combat . | . . . . Combat . | . . . . Robot Hacks Applied . | . . . . Relay Couplers Released . | . . . . Fabnet Peak Effective % . | . . . . Robots Rewired . | . . . . Allies Hacked . | . . . . Hacks Repelled . | . . . . Allies | -11 -10 -10 -10 -------- Run | Yrd Mat Min Sub Total Allies 2 | . . 2 . Largest Group 2 | . . 2 1 Highest-Rated Group 42 | . . 42 31 Highest-Rated Ally 31 | . . 31 31 Total Orders . | . . . . Ally Attacks 9 | . . . 9 Total Damage 127 | . . . 127 Kills 3 | . . . 3 Allies Corrupted . | . . . . Allies Melted . | . . . . Intel | -11 -10 -10 -10 ------- Run | Yrd Mat Min Sub Active Infowar (turns) 780 | . 193 273 314 Optics 223 | . . . 223 Terrain 301 | . . 211 90 Seismic 272 | . . 216 56 ECM 255 | . 193 62 . Robot Analysis Total . | . . . . Derelict Logs Recovered 2 | . . 1 1 Drone Launches . | . . . . Drone Recoveries . | . . . . Exploration | -11 -10 -10 -10 ------------- Run | Yrd Mat Min Sub Turns Passed 987 | 149 241 273 324 Spaces Moved 582 | 99 132 195 156 Core 17 | 17 . . . Treads . | . . . . Legs 565 | 82 132 195 156 Wheels . | . . . . Hover . | . . . . Flight . | . . . . Fastest Speed 50 | 50 120 120 120 Average Speed 126 | 107 120 120 150 Slowest Speed 190 | 120 120 120 190 Overloaded Moves . | . . . . Propulsion Burnouts . | . . . . Robots Hopped . | . . . . Potential Cave-ins . | . . . . Cave-ins Triggered . | . . . . Exploration Rate (%) 22 | 7 25 48 10 Regions Visited 3 Branch Regions 2 Pre-discovered Areas . | . . . . Known Exits Taken . | . . . . Unknown Exits Taken 3 | 1 1 1 . Scrap Searched 1 | . . . 1 Spaces Dug . | . . . . Terrain Destroyed . | . . . . Melee . | . . . . Projectile . | . . . . AOE . | . . . . Terrain Rammed . | . . . . Walls Destroyed . | . . . . Machines Disabled . | . . . . Actions | -11 -10 -10 -10 --------- Run | Yrd Mat Min Sub Total 766 | 127 182 226 231 Wait 56 | 6 25 17 8 Move 579 | 98 131 194 156 Hop . | . . . . Pick Up 34 | 10 5 4 15 Fast Attach . | . . . . Attach 22 | 6 1 2 13 Detach 9 | . . . 9 Swap . | . . . . Drop 20 | . 3 4 13 Fire 46 | 7 17 5 17 Melee . | . . . . Ram . | . . . . Kick . | . . . . Crush . | . . . . Escape Stasis . | . . . . Rewire . | . . . . Trap . | . . . . Miscellaneous . | . . . . Route ------- -11/Scrapyard -10/Materials -10/Mines (discovered 2 exits: [*Mat] / [*Sub]) -10/Subcaves History --------- Turn | Location | Event 2 | -11/Scrapyard | Met Revision 17 86 | -11/Scrapyard | Discovered new exit (range 8) 150 | -11/Scrapyard | Entered Materials 158 | -10/Materials | Central database locked down 329 | -10/Materials | Build established: Mutant 348 | -10/Materials | Discovered new exit (range 16) 391 | -10/Materials | Entered Mines 433 | -10/Mines | Discovered new exit (range 5) 619 | -10/Mines | Learned Materials garrison access intel 657 | -10/Mines | Discovered new exit (range 5) 664 | -10/Mines | Entered Subcaves 664 | -10/Subcaves | Accompanied by 1 ally 665 | -10/Subcaves | Approached by a straggling Scientist 669 | -10/Subcaves | Led the pair of lost Derelicts to an unsafe place 695 | -10/Subcaves | Learned location of 1 exit from Materials 700 | -10/Subcaves | A Subdweller sparked back to life 700 | -10/Subcaves | A Subdweller sparked back to life 700 | -10/Subcaves | A Subdweller sparked back to life 746 | -10/Subcaves | Found Prototype Protection 758 | -10/Subcaves | Identified Gun Armor 759 | -10/Subcaves | Attached Gun Armor, gained temporary slots: Weapon x2 952 | -10/Subcaves | Ambushed by swarm of Subdwellers 952 | -10/Subcaves | Ambushed by Subdwellers from Twisted Machinery 952 | -10/Subcaves | Ambushed by Subdwellers from Twisted Machinery 952 | -10/Subcaves | Ambushed by Subdwellers from Twisted Machinery 974 | -10/Subcaves | Core integrity fell below 50% 985 | -10/Subcaves | Core integrity fell below 20% 988 | -10/Subcaves | Destroyed by DE-RT8(R) with Subdweller Machine Gun Last Messages --------------- VS-7CT(R) suffers critical hit (Burn). MU-FX7(R) suffers critical hit (Burn). IO-14A(g) destroyed. MU-FX7(R) destroyed. Aluminum Leg destroyed. VS-7CT(R) suffers critical hit (Burn). VS-7CT(R) destroyed. Disposable Heat Sink melted. WR-28L(R) destroyed. TD-NTF(g) destroyed. Lgt. Ion Engine destroyed. Med. Laser destroyed. 7T-XCB(R) destroyed. Sub. Machine Gun destroyed. Temporary Weapon slot lost. NO-FI9(R) affixes Scrap Shield Fragment to Scrap Shield. Sub. Optics destroyed. 31-9SM(R) suffers critical hit (Burn). 31-9SM(R) destroyed. Map ----- +----------------------------------------------------+ | ????????????????????????????????????????? | | ????????????????????????????????????????? | | ????????????????????????????????????????? | | ????????????????????????????????????????? | | ????????????????????????????????????????? | | ????????????????????????????????????????? | | ????????????????????????????????????????? | | ????????????????????????????????????????? | | ????????????????????????????????????????? | | ????????????????????????????????????????? | | ????????????????????????????????????????? | | ????????????????????????????????????????? | | ????????????????????????????????????????? | | ?????????????????????????????????###????? | | ???????????????????????????????### #????? | | ???????????????????????????????# #????? | | ???????????????????#####???????# #????# | | ???????????????????# #??????## % ##??## | | ????????????????#### ##????##%# #### | | ??????????????### ##???# | | ??????????????# #####% | | ??????????????# % # # [ | | ??????????????# *%!= % | | ??????????????# =!==* | | ??????????????# %RR[%=%![ # ## | | ??????????????##@[]==g## ##### ## | | ???????????????##[%!%### #???## ### | | ????????????????#%R%R#?## #????### ## | | ????????????????# ![%#??# #?????## ## | | ????????????????# %!##?? #??????# ## | | ????????????????# "!#??# ##??????# # | | ????????????????#"###??## ##??????? | | ????????????????###?????# ##???????? | | ???????????????????????? #????????? # | | ???????????????????????? #????????? ## | | ???????????????????????? ##????????? ### | | ??????????????????????? ???????????###?# | | ??????????????????????? ???????????????? | | ??????????????????????? ???????????????? | | ?????????????????????? ???????????????? | | ?????????????????????? ???????????????? | | ??????????????????????###??????????????? | | ???????????????????????????????????????? | | ???????????????????????????????????????? | | ????????????????????????????????????????? | | ????????????????????????????????????????? | | ????????????????????????????????????????? | | ????????????????????????????????????????? | | ????????????????????????????????????????? | | ????????????????????????????????????????? | +----------------------------------------------------+ Best States ------------- Heat Dissipation 35 Coolant Potential 50 Energy Generation 10 Energy Capacity 125 Matter Stores 300 Matter Capacity 300 Sight Range 21 Terrain Scan Range 16 Terrain Scan Density 10 ECM Strength 1 Armor Coverage 60 Evasion (%) 55 Item Schematics ----------------- None Robot Schematics ------------------ None Fabricated ------------ Nothing Repaired ---------- Nothing Alien Tech Used ----------------- None Achievements -------------- None Challenges ------------ None Game ------ Seed SuspensionGodFlightbrick Manual? 0 Play Time 00:27:04 Cumulative 0.4 hours Start 2025.06.24 @ 18:35:54 End 2025.06.24 @ 23:20:59 Sessions 1 Manual Loads 0 Difficulty Rogue Special Mode None Game No. 1 Rogue 1 Adventurer 0 Explorer 0 Win Type - Total 0 Types 0/0/0/0/0/0/0/0/0/0 Lore% 0 Gallery% 1 Achievement% 38 Wizard Run 0 Options --------- Layout 1 ASCII 0 Keyboard 1 Movement Numpad Keybinds 0 Fullscreen 1 Font 24/Smallcaps Map View 50x35 Zoom Use 0% Tactical HUD 0 Map Filters NONE Filters NONE Steam 1 RUN: 06519173-9061-4ea0-831a-735c2a06d2d0